[Event "CZE-ch Open 2018"]
[Site "Ostrava"]
[Date "2018.05.04"]
[Round "7"]
[White "Stepan, Patrik"]
[Black "Mrazek, Lumir"]
[Result "1-0"]
[ECO "D89"]
[WhiteElo "2207"]
[BlackElo "2327"]
[Annotator "ChessBase"]
[PlyCount "101"]
[EventDate "2018.??.??"]
[EventCountry "CZE"]
[SourceTitle "playchess.com"]
[Source "ChessBase"]
[SourceQuality "1"]
[TimeControl "40/5400+30:900+30"]

1. d4 {[%emt 0:00:00]} Nf6 {[%emt 0:00:57]} 2. c4 {[%emt 0:00:00]} g6 {[%emt 0:00:07]} 3. Nc3 {[%emt 0:00:00]} d5 {[%emt 0:00:04]} 4. cxd5 {[%emt 0:00:00]} Nxd5 {[%emt 0:00:05]} 5. e4 {[%emt 0:00:00]} Nxc3 {[%emt 0:00:06]} 6. bxc3 {[%emt 0:00:00]} Bg7 {[%emt 0:00:08]} 7. Bc4 {[%emt 0:01:51]} c5 {[%emt 0:00:07]} 8. Ne2 {[%emt 0:00:12]} Nc6 {[%emt 0:00:05]} 9. Be3 {[%emt 0:00:04]} O-O {[%emt 0:00:08]} 10. O-O {[%emt 0:00:03]} Bg4 {[%emt 0:12:44]} 11. f3 {[%emt 0:01:14]} Na5 {[%emt 0:00:19]} 12. Bd3 {[%emt 0:00:14]} cxd4 {[%emt 0:00:05]} 13. cxd4 {[%emt 0:00:04]} Be6 {[%emt 0:00:05]} 14. Rc1 {[%emt 0:00:14]} Bxa2 {[%emt 0:00:06]} 15. Qa4 {[%emt 0:00:03]} Be6 {[%emt 0:00:56]} 16. d5 {[%emt 0:00:27]} Bd7 {[%emt 0:08:09]} 17. Qb4 {[%emt 0:00:09]} e6 {[%emt 0:01:14]} 18. Nc3 {[%emt 0:01:06]} b6 {[%emt 0:04:23]} 19. Ba6 {[%emt 0:00:54]} Bc8 {[%emt 0:13:17]} 20. Bxc8 {[%emt 0:12:55]} Rxc8 {[%emt 0:02:03]} 21. Nb5 {[%emt 0:06:09]} Rxc1 {[%emt 0:15:41]} 22. Rxc1 {[%emt 0:00:40]} exd5 {[%emt 0:00:55]} 23. Nxa7 {[%emt 0:04:43]} d4 {[%emt 0:05:33]} 24. Bf4 {[%emt 0:06:42]} Qf6 {[%emt 0:03:56]} 25. Bd6 {[%emt 0:07:05]} Bh6 {[%emt 0:00:58]} 26. Rd1 {[%emt 0:05:17]} Re8 {[%emt 0:08:13]} 27. Kh1 {[%emt 0:07:34]} Be3 {[%emt 0:00:27]} 28. Nb5 {[%emt 0:06:36]} Rc8 {[%emt 0:08:23]} 29. Nc7 {[%emt 0:05:36]} Nb7 {[%emt 0:06:06]} 30. Bg3 {[%emt 0:03:55]} Qc6 {[%emt 0:02:17]} 31. Nd5 {[%emt 0:07:31]} Qc5 {[%emt 0:00:50]} 32. Qb1 {[%emt 0:13:00]} b5 {[%emt 0:03:51]} 33. Be5 {[%emt 0:00:23]} Kf8 {[%emt 0:00:42]} 34. Bf6 {[%emt 0:01:15]} Re8 {[%emt 0:00:19]} 35. Nxe3 {[%emt 0:04:09]} dxe3 {[%emt 0:00:11]} 36. Bd4 {[%emt 0:00:29]} Qc4 {[%emt 0:01:57]} 37. Bxe3 {[%emt 0:00:07]} Rd8 {[%emt 0:00:13]} 38. Bh6+ {[%emt 0:01:12]} Ke8 {[%emt 0:00:01]} 39. Rc1 {[%emt 0:00:45]} Qe2 {[%emt 0:01:55]} 40. Qa1 {[%emt 0:01:36]} Nc5 {[%emt 0:16:57]} 41. Qh8+ {[%emt 0:18:38]} Kd7 {[%emt 0:00:38]} 42. Qd4+ Ke8 {[%emt 0:00:24]} 43. Qxc5 {[%emt 0:00:54]} Rd1+ {[%emt 0:00:31]} 44. Rxd1 Qxd1+ {[%emt 0:00:04]} 45. Qg1 {[%emt 0:00:09]} Qd3 {[%emt 0:00:06]} 46. Qc1 {[%emt 0:00:43]} b4 {[%emt 0:00:11]} 47. Qc8+ {[%emt 0:02:53]} Ke7 {[%emt 0:00:14]} 48. Bf8+ {[%emt 0:00:05]} Kf6 {[%emt 0:00:13]} 49. Qc6+ {[%emt 0:00:25]} Ke5 {[%emt 0:00:14]} 50. Qc5+ {[%emt 0:00:00]} Ke6 {[%emt 0:00:00]} 51. Qe7# {[%emt 0:00:00] Kd5} 1-0

[Event "CZE-ch Open 2018"]
[Site "Ostrava"]
[Date "2018.05.04"]
[Round "7"]
[White "Vystrcil, Martin"]
[Black "Rubes, Jan"]
[Result "0-1"]
[ECO "B33"]
[WhiteElo "2146"]
[BlackElo "2337"]
[Annotator "NA"]
[PlyCount "68"]
[EventDate "2018.??.??"]
[EventCountry "CZE"]
[SourceTitle "playchess.com"]
[Source "ChessBase"]
[SourceQuality "1"]
[TimeControl "40/5400+30:900+30"]

1. e4 {[%emt 0:01:26]} c5 {[%emt 0:00:06]} 2. Nf3 {[%emt 0:00:06]} Nc6 {[%emt 0:00:05]} 3. d4 {[%emt 0:00:20]} cxd4 {[%emt 0:00:06]} 4. Nxd4 {[%emt 0:00:08]} Nf6 {[%emt 0:00:04]} 5. Nc3 {[%emt 0:00:07]} e5 {[%emt 0:00:09]} 6. Ndb5 {[%emt 0:00:26]} d6 {[%emt 0:00:05]} 7. Bg5 {[%emt 0:01:06]} a6 {[%emt 0:00:04]} 8. Na3 {[%emt 0:00:10]} Be6 {[%emt 0:00:05]} 9. Nc4 {[%emt 0:13:37]} Rc8 {[%emt 0:00:18]} 10. Nd5 {[%emt 0:02:59]} Bxd5 {[%emt 0:00:19]} 11. exd5 {[%emt 0:00:14]} Ne7 {[%emt 0:01:35]} 12. Bxf6 {[%emt 0:08:58] B33: Sicilian: Pelikan and Sveshnikov Variations} gxf6 {[%emt 0:00:20]} 13. Qd2 {[%emt 0:02:27]} b5 {[%emt 0:19:53]} (13... f5 14. Qb4 Nxd5 15. Qxb7 Nf6 16. O-O-O Ne4 17. Nxe5 Bh6+ 18. Kb1 Rc7 19. Qb6 O-O 20. Nf3 Bg7 21. Bxa6 Rxc2 22. Qxd8 Rxb2+ 23. Kc1 Rxd8 24. Rhe1 Rxa2 {0-1 (24) Baskin,R (2375)-Bellahcene,B (2498) Biel 2016}) 14. Na5 $146 {[%emt 0:02:32]} ({Predecessor:} 14. Ne3 Bh6 15. a4 Rc5 16. axb5 axb5 17. Qa5 O-O 18. b4 Rc3 19. Qxb5 Qc7 {0-1 (32) Vazquez,J-Rojo Huerta,G (2380) Madrid 1995}) 14... h5 {[%emt 0:02:39]} 15. Rd1 {[%emt 0:01:35]} Qb6 {[%emt 0:21:14]} 16. c4 {[%emt 0:05:21]} Bh6 {[%emt 0:00:42]} 17. Qb4 {[%emt 0:00:48]} Rg8 {[%emt 0:02:34]} 18. g3 {[%emt 0:02:34]} Rg4 {[%emt 0:01:09]} 19. Be2 {[%emt 0:05:59]} Re4 {[%emt 0:01:30]} 20. Kf1 {[%emt 0:02:33]} h4 {[%emt 0:05:52]} 21. Bd3 $2 {[%emt 0:08:40]} ({White should play} 21. c5 $11 Rxb4 22. cxb6) 21... Nxd5 {[%emt 0:03:09]} 22. Qa3 {[%emt 0:03:35] [#]} Ne3+ $1 {[%emt 0:01:34]} 23. fxe3 {[%emt 0:01:08]} Rxe3 {[%emt 0:00:03]} 24. c5 $2 {[%emt 0:08:36]} (24. Kg2 {was forced.} Rxc4 25. Rhf1 (25. Nxc4 $2 Qc6+ 26. Kh3 bxc4 $19)) 24... dxc5 $19 {[%emt 0:10:19]} 25. Re1 {[%emt 0:02:32]} Rxe1+ {[%emt 0:07:12]} 26. Kxe1 {[%emt 0:00:04]} c4 {[%emt 0:00:21]} 27. Be2 {[%emt 0:01:49]} Bf8 {[%emt 0:05:41]} 28. Qc3 {[%emt 0:01:33]} b4 {[%emt 0:00:20]} 29. Qf3 {[%emt 0:07:09]} Qxa5 {[%emt 0:00:16]} 30. Qb7 {[%emt 0:00:08]} Rc7 {[%emt 0:05:42]} 31. Qb8+ {[%emt 0:01:28]} Ke7 {[%emt 0:00:04]} 32. Bg4 {[%emt 0:02:58]} c3 {[%emt 0:01:10]} 33. Kf2 {[%emt 0:01:33]} c2 {[%emt 0:00:13]} 34. Rc1 {[%emt 0:00:45]} Bh6 {[%emt 0:00:17]} 0-1

[Event "CZE-ch Open 2018"]
[Site "Ostrava"]
[Date "2018.05.04"]
[Round "7"]
[White "Jelinek, Michal"]
[Black "Malik, Jan"]
[Result "0-1"]
[ECO "D45"]
[WhiteElo "2134"]
[BlackElo "2284"]
[Annotator "NA"]
[PlyCount "78"]
[EventDate "2018.??.??"]
[EventCountry "CZE"]
[SourceTitle "playchess.com"]
[Source "ChessBase"]
[SourceQuality "1"]
[TimeControl "40/5400+30:900+30"]

1. d4 {[%emt 0:00:12]} d5 {[%emt 0:00:11]} 2. c4 {[%emt 0:00:21]} c6 {[%emt 0:00:06]} 3. Nf3 {[%emt 0:00:20]} Nf6 {[%emt 0:00:17]} 4. Nc3 {[%emt 0:00:20]} e6 {[%emt 0:00:09]} 5. e3 {[%emt 0:00:20]} Nbd7 {[%emt 0:00:15]} 6. Qc2 {[%emt 0:00:48]} Bd6 {[%emt 0:00:31]} 7. Bd3 {[%emt 0:00:33]} dxc4 {[%emt 0:00:17]} 8. Bxc4 {[%emt 0:00:05]} b5 {[%emt 0:00:15]} 9. Be2 {[%emt 0:00:42] D46: Semi-Slav: 5 e3 Nbd7 6 Bd3, Black avoids the Meran} Bb7 {[%emt 0:01:47]} (9... O-O 10. O-O a6 11. Rd1 Qc7 12. e4 e5 13. h3 Re8 14. a3 exd4 15. Nxd4 Bh2+ 16. Kh1 Be5 17. Bf3 c5 18. Nf5 Nb6 19. Bg5 Bxf5 20. exf5 {½-½ (40) Navara,D (2751)-So,W (2778) Prague 2015}) 10. O-O {[%emt 0:02:04]} a6 {[%emt 0:00:25] LiveBook: 11 Games} 11. Rd1 {[%emt 0:03:28]} Qe7 {[%emt 0:03:04]} 12. e4 {[%emt 0:02:31]} e5 {[%emt 0:00:06]} 13. dxe5 {[%emt 0:01:38]} Nxe5 {[%emt 0:00:14]} 14. Nd4 {[%emt 0:00:51]} Neg4 $146 {[%emt 0:06:31]} ({Predecessor:} 14... g6 15. f4 Neg4 16. e5 Bxe5 17. fxe5 Qxe5 18. Bxg4 Nxg4 19. Qe4 c5 20. Qxg4 {1-0 (20) Kezin,R (2455)-Utnasunov,A (2446) Sochi 2017}) 15. h3 {[%emt 0:13:49]} h5 {[%emt 0:13:32]} 16. Nf5 {[%emt 0:12:24]} Bh2+ {[%emt 0:00:24]} 17. Kf1 {[%emt 0:00:34]} Qc5 {[%emt 0:00:48]} 18. hxg4 {[%emt 0:01:28]} hxg4 {[%emt 0:00:21]} 19. Be3 {[%emt 0:03:31]} Qe5 {[%emt 0:02:34]} 20. Nd6+ {[%emt 0:08:42]} Kf8 {[%emt 0:00:16]} 21. Nxb7 {[%emt 0:01:27]} Bf4 {[%emt 0:01:54]} 22. Bd3 {[%emt 0:03:10]} Bxe3 {[%emt 0:07:06]} 23. fxe3 {[%emt 0:00:19]} g3 {[%emt 0:00:27]} 24. Ne2 {[%emt 0:06:51]} Nd5 {[%emt 0:09:24]} (24... Ng4 $142 25. Ke1 (25. Qxc6 Rh1+ 26. Ng1 Nxe3+ 27. Ke2 Qxb2+ 28. Rd2 Qxa1 $17) 25... Nxe3 26. Qc5+ Qxc5 27. Nxc5 Nxd1) 25. Qc5+ {[%emt 0:09:20]} Kg8 {[%emt 0:00:13]} 26. Qd4 {[%emt 0:01:44]} Rh1+ {[%emt 0:03:10]} 27. Ng1 {[%emt 0:00:04]} Qh5 {[%emt 0:00:43]} 28. Bc2 {[%emt 0:13:31]} Nf6 {[%emt 0:08:26]} 29. e5 {[%emt 0:01:49]} Qh2 {[%emt 0:04:30]} 30. e4 {[%emt 0:03:08]} Ng4 {[%emt 0:00:23]} 31. e6 $11 {[%emt 0:00:51]} (31. Re1 $18) 31... fxe6 {[%emt 0:00:47]} 32. Nd8 {[%emt 0:02:13]} Nf2 {[%emt 0:06:44]} 33. Nxe6 {[%emt 0:02:20]} Rxg1+ {[%emt 0:01:10]} 34. Ke2 {[%emt 0:00:02]} Qh5+ {[%emt 0:00:11]} 35. Kd2 {[%emt 0:02:36]} Qh6+ {[%emt 0:12:35]} 36. Ke2 {[%emt 0:01:45]} Rxg2 {[%emt 0:02:28]} 37. Kf3 {[%emt 0:02:02]} Nxd1 {[%emt 0:00:40]} 38. Bxd1 {[%emt 0:00:36]} Rf2+ {[%emt 0:00:29]} 39. Kxg3 {[%emt 0:00:29]} Qh2+ {[%emt 0:00:48]} 0-1

[Event "CZE-ch Open 2018"]
[Site "Ostrava"]
[Date "2018.05.04"]
[Round "7"]
[White "Havelka, Ondrej"]
[Black "Freisler, Pavel"]
[Result "1-0"]
[ECO "E46"]
[WhiteElo "2041"]
[BlackElo "2266"]
[Annotator "NA"]
[PlyCount "77"]
[EventDate "2018.??.??"]
[EventCountry "CZE"]
[SourceTitle "playchess.com"]
[Source "ChessBase"]
[SourceQuality "1"]
[TimeControl "40/5400+30:900+30"]

1. d4 {[%emt 0:00:24]} Nf6 {[%emt 0:00:33]} 2. c4 {[%emt 0:00:09]} e6 {[%emt 0:00:27]} 3. Nc3 {[%emt 0:00:08]} Bb4 {[%emt 0:00:17]} 4. e3 {[%emt 0:01:00]} O-O {[%emt 0:00:48]} 5. Nge2 {[%emt 0:00:25]} d5 {[%emt 0:01:28]} 6. a3 {[%emt 0:00:05]} Bd6 {[%emt 0:00:32]} 7. Ng3 {[%emt 0:03:28]} c6 {[%emt 0:00:31] E46: Nimzo-Indian: Rubinstein: 4 e3 0-0 5 Ne2 without early Bd3} 8. c5 {[%emt 0:02:25]} Bc7 {[%emt 0:05:51]} 9. f4 {[%emt 0:01:04]} b6 {[%emt 0:00:10]} 10. b4 {[%emt 0:01:18]} a5 {[%emt 0:03:32]} 11. Bd2 {[%emt 0:01:08]} Ba6 {[%emt 0:01:27]} 12. Bxa6 {[%emt 0:01:55]} Nxa6 $146 {[%emt 0:00:43]} ({Predecessor:} 12... Rxa6 13. O-O axb4 14. axb4 Rxa1 15. Qxa1 bxc5 16. bxc5 {½-½ (22) Golod,V (2579)-Gyimesi,Z (2646) Germany 2011}) 13. Na4 {[%emt 0:03:11]} Nd7 {[%emt 0:18:18]} 14. O-O {[%emt 0:00:58]} Qe7 {[%emt 0:12:54]} 15. Qc2 {[%emt 0:04:38]} b5 {[%emt 0:05:11]} 16. Nb2 {[%emt 0:01:13]} f6 {[%emt 0:00:13]} 17. e4 {[%emt 0:02:28]} Rae8 {[%emt 0:09:21]} 18. Rae1 {[%emt 0:07:13]} Qd8 {[%emt 0:02:36]} 19. f5 {[%emt 0:05:26]} (19. e5 $16) 19... Bxg3 {[%emt 0:08:53]} 20. hxg3 {[%emt 0:02:06]} axb4 {[%emt 0:04:43]} 21. axb4 {[%emt 0:00:33]} (21. exd5 $1 $14 exd5 22. axb4) 21... Nc7 {[%emt 0:00:06]} 22. fxe6 {[%emt 0:13:05]} Rxe6 {[%emt 0:04:08]} 23. exd5 {[%emt 0:02:36]} Rxe1 {[%emt 0:01:47]} 24. Rxe1 {[%emt 0:00:02]} Nxd5 {[%emt 0:00:11]} 25. Qf5 {[%emt 0:00:49]} Re8 {[%emt 0:01:26]} 26. Re6 $17 {[%emt 0:00:40]} (26. Rxe8+ $15 Qxe8 27. Qf3) 26... g6 {[%emt 0:08:14]} 27. Qe4 {[%emt 0:18:08]} Kf7 {[%emt 0:00:14]} 28. Rxe8 {[%emt 0:00:02]} Qxe8 {[%emt 0:00:05]} 29. Qf3 {[%emt 0:00:16]} Qe6 {[%emt 0:01:02]} 30. Nd3 {[%emt 0:00:35]} g5 {[%emt 0:01:44]} 31. Bxg5 {[%emt 0:02:49]} Kg7 {[%emt 0:00:29]} 32. Bd2 {[%emt 0:10:10]} Nf8 {[%emt 0:00:02]} 33. Nf4 {[%emt 0:00:45]} Nxf4 {[%emt 0:00:07]} 34. Bxf4 {[%emt 0:00:14]} Ng6 {[%emt 0:00:26]} 35. Bd6 {[%emt 0:00:32]} Qe1+ {[%emt 0:01:46]} 36. Kh2 {[%emt 0:00:08]} Qxb4 {[%emt 0:00:05]} 37. Qxc6 {[%emt 0:00:20]} Qxd4 {[%emt 0:00:03]} 38. Qd7+ {[%emt 0:00:35]} Kh6 {[%emt 0:00:23]} 39. Bf8+ {[%emt 0:00:38]} 1-0

[Event "CZE-ch Open 2018"]
[Site "Ostrava"]
[Date "2018.05.04"]
[Round "7"]
[White "Benes, Miroslav"]
[Black "Bartos, Jan"]
[Result "1-0"]
[ECO "C42"]
[WhiteElo "2004"]
[BlackElo "2198"]
[Annotator "NA"]
[PlyCount "101"]
[EventDate "2018.??.??"]
[EventCountry "CZE"]
[SourceTitle "playchess.com"]
[Source "ChessBase"]
[SourceQuality "1"]
[TimeControl "40/5400+30:900+30"]

1. e4 {[%emt 0:00:57]} e5 {[%emt 0:00:15]} 2. Nf3 {[%emt 0:00:20]} Nf6 {[%emt 0:00:08]} 3. Nxe5 {[%emt 0:00:11]} d6 {[%emt 0:00:05]} 4. Nf3 {[%emt 0:00:04]} Nxe4 {[%emt 0:00:05]} 5. Nc3 {[%emt 0:00:05]} Nxc3 {[%emt 0:00:06]} 6. dxc3 {[%emt 0:00:05]} Be7 {[%emt 0:00:06]} 7. Be3 {[%emt 0:00:05]} Nc6 {[%emt 0:00:12]} 8. Qd2 {[%emt 0:00:06]} Be6 {[%emt 0:00:11]} 9. Be2 {[%emt 0:00:19] C42: Petroff Defence: 3 Nxe5 and unusual White 3rd moves} (9. O-O-O a6 10. b3 h6 11. Be2 Qd7 12. Kb1 Bf6 13. Nd4 Nxd4 14. Bxd4 Bxd4 15. Qxd4 O-O 16. c4 Rfe8 17. Bf3 Rab8 {1-0 (41) Anand,V (2776)-Mamedyarov,S (2809) Moscow 2018}) 9... Qd7 {[%emt 0:00:19]} 10. Nd4 {[%emt 0:02:02]} Nxd4 {[%emt 0:10:29]} 11. Bxd4 {[%emt 0:02:42]} O-O {[%emt 0:00:19]} 12. O-O $146 {[%emt 0:00:48]} ({Predecessor:} 12. c4 c5 13. Bc3 d5 14. cxd5 Qxd5 15. Bf3 Qxd2+ 16. Bxd2 Rad8 {½-½ (34) Cherenkova,K (2270)-Turova,I (2379) St Petersburg 2009}) 12... Rfe8 {[%emt 0:00:57]} 13. c4 {[%emt 0:02:44]} c5 {[%emt 0:09:09]} 14. Bc3 {[%emt 0:01:30]} d5 {[%emt 0:03:00]} 15. cxd5 {[%emt 0:00:04]} Qxd5 {[%emt 0:00:36]} 16. Qxd5 {[%emt 0:02:15]} Bxd5 {[%emt 0:00:02]} 17. Rad1 {[%emt 0:03:18]} Be4 {[%emt 0:03:32]} 18. Bb5 {[%emt 0:03:36]} Bc6 {[%emt 0:06:34]} 19. Bxc6 {[%emt 0:02:26]} bxc6 {[%emt 0:00:05]} 20. Rd7 {[%emt 0:01:27]} Bf6 {[%emt 0:00:25]} 21. Bxf6 {[%emt 0:01:59]} gxf6 {[%emt 0:00:02]} 22. Rfd1 {[%emt 0:01:03]} Re2 {[%emt 0:01:47]} 23. R7d2 {[%emt 0:00:18]} Rae8 {[%emt 0:01:19]} 24. Kf1 {[%emt 0:00:13]} R2e6 {[%emt 0:00:42]} 25. Rd8 {[%emt 0:00:25]} Kf8 {[%emt 0:05:12]} 26. Rxe8+ {[%emt 0:00:19]} Kxe8 {[%emt 0:00:13]} 27. Rd3 {[%emt 0:02:53]} Re7 {[%emt 0:17:35]} 28. Rh3 {[%emt 0:01:49]} Rb7 {[%emt 0:03:20]} 29. b3 {[%emt 0:00:08]} Rb6 {[%emt 0:06:48]} 30. Rxh7 {[%emt 0:04:46]} Ra6 {[%emt 0:02:17]} 31. a4 {[%emt 0:00:17]} c4 {[%emt 0:00:41]} 32. Rh8+ {[%emt 0:05:26]} Ke7 {[%emt 0:01:47]} 33. Rb8 {[%emt 0:00:15]} cxb3 {[%emt 0:01:30]} 34. cxb3 {[%emt 0:00:10]} c5 {[%emt 0:00:12]} 35. Rc8 {[%emt 0:07:47]} Kd6 {[%emt 0:00:54]} 36. h4 {[%emt 0:02:28]} Rb6 $18 {[%emt 0:00:51]} 37. h5 {[%emt 0:03:34]} Rxb3 {[%emt 0:00:07]} 38. g3 {[%emt 0:00:06]} Rb1+ {[%emt 0:12:24]} 39. Kg2 {[%emt 0:00:11]} Kd7 {[%emt 0:00:31]} 40. Rxc5 {[%emt 0:02:21]} Rb8 {[%emt 0:17:30]} 41. Ra5 {[%emt 0:25:00]} Ra8 {[%emt 0:00:22]} 42. Kf3 {[%emt 0:00:34]} Ke6 {[%emt 0:01:10]} 43. Ke4 {[%emt 0:01:49]} a6 {[%emt 0:05:20]} 44. g4 {[%emt 0:01:10]} Ke7 {[%emt 0:00:36]} 45. h6 {[%emt 0:00:53]} Rh8 {[%emt 0:00:20]} 46. Rh5 {[%emt 0:00:04]} Ke6 {[%emt 0:02:29]} 47. h7 {[%emt 0:01:10]} a5 {[%emt 0:00:06]} 48. f4 {[%emt 0:00:47]} f5+ {[%emt 0:00:26]} 49. gxf5+ {[%emt 0:00:44]} Kf6 {[%emt 0:00:05]} 50. Kd5 {[%emt 0:00:35]} Kg7 {[%emt 0:00:29]} 51. Kc6 {[%emt 0:05:01]} 1-0

[Event "CZE-ch Open 2018"]
[Site "Ostrava"]
[Date "2018.05.05"]
[Round "8"]
[White "Jasny, Stanislav"]
[Black "Zwardon, Vojtech"]
[Result "1/2-1/2"]
[ECO "A46"]
[WhiteElo "2379"]
[BlackElo "2409"]
[Annotator "NA"]
[PlyCount "98"]
[EventDate "2018.??.??"]
[EventCountry "CZE"]
[SourceTitle "playchess.com"]
[Source "ChessBase"]
[SourceQuality "1"]
[TimeControl "40/5400+30:900+30"]

1. d4 {[%emt 0:00:00]} Nf6 {[%emt 0:00:01]} 2. Nf3 {[%emt 0:00:00]} e6 {[%emt 0:00:02]} 3. e3 {[%emt 0:00:09]} b6 {[%emt 0:00:47]} 4. Bd3 {[%emt 0:00:18]} Bb7 {[%emt 0:00:10]} 5. O-O {[%emt 0:00:18]} Be7 {[%emt 0:09:19]} 6. c4 {[%emt 0:00:14]} O-O {[%emt 0:01:27]} 7. Nc3 {[%emt 0:00:19]} d5 {[%emt 0:00:21]} 8. Qe2 {[%emt 0:06:22]} Nbd7 {[%emt 0:03:01]} 9. Rd1 {[%emt 0:19:16]} Ne4 {[%emt 0:05:23]} 10. cxd5 {[%emt 0:00:07]} exd5 {[%emt 0:01:24]} 11. Ba6 {[%emt 0:00:38]} Bxa6 {[%emt 0:11:43]} 12. Qxa6 {[%emt 0:00:08]} Ndf6 {[%emt 0:00:40]} 13. Bd2 {[%emt 0:05:01]} Bd6 {[%emt 0:11:22]} 14. Be1 {[%emt 0:16:05]} Qc8 {[%emt 0:03:17]} 15. Qxc8 {[%emt 0:00:33]} Rfxc8 {[%emt 0:00:55]} 16. Rac1 {[%emt 0:02:50]} Nxc3 {[%emt 0:01:23]} 17. Rxc3 {[%emt 0:05:31]} Kf8 {[%emt 0:04:04]} 18. Rc6 {[%emt 0:03:21]} a5 {[%emt 0:03:55]} 19. Ne5 {[%emt 0:12:46]} Ke7 {[%emt 0:03:46]} 20. f3 {[%emt 0:06:36]} Nd7 {[%emt 0:00:04]} 21. Bg3 {[%emt 0:01:00]} Nb8 {[%emt 0:10:10]} 22. Rc2 {[%emt 0:02:30]} f6 {[%emt 0:00:57]} 23. Nc6+ {[%emt 0:01:27]} Nxc6 {[%emt 0:00:10]} 24. Rxc6 {[%emt 0:00:05]} Kd7 {[%emt 0:01:22]} 25. Rdc1 {[%emt 0:00:52]} Bxg3 {[%emt 0:03:38]} 26. hxg3 {[%emt 0:00:06]} a4 {[%emt 0:00:08]} 27. e4 {[%emt 0:07:24]} dxe4 {[%emt 0:00:10]} 28. fxe4 {[%emt 0:00:05]} Ra5 {[%emt 0:00:05]} 29. d5 {[%emt 0:00:41]} Rb5 {[%emt 0:01:21]} 30. R1c2 {[%emt 0:00:32]} Rb4 {[%emt 0:00:54]} 31. Kf2 {[%emt 0:05:23]} Rxe4 {[%emt 0:01:12]} 32. d6 {[%emt 0:00:05]} Rd4 {[%emt 0:00:44]} 33. Rxc7+ {[%emt 0:00:41]} Rxc7 {[%emt 0:00:06]} 34. dxc7 {[%emt 0:00:19]} Kc8 {[%emt 0:00:09]} 35. Ke3 {[%emt 0:00:17]} Rg4 {[%emt 0:00:22]} 36. Kf3 {[%emt 0:00:44]} Rb4 {[%emt 0:03:39]} 37. Ke3 {[%emt 0:03:29]} h5 {[%emt 0:01:12]} 38. a3 {[%emt 0:01:15]} Rb3+ {[%emt 0:00:18]} 39. Kf4 {[%emt 0:01:15]} b5 {[%emt 0:00:25]} 40. g4 {[%emt 0:00:44]} hxg4 {[%emt 0:27:24]} 41. Kxg4 {[%emt 0:00:00]} g6 {[%emt 0:00:00]} 42. Kf4 {[%emt 0:00:00]} b4 {[%emt 0:00:00]} 43. axb4 {[%emt 0:00:00]} Rxb4+ {[%emt 0:00:00]} 44. Kg3 {[%emt 0:00:00]} f5 {[%emt 0:00:00]} 45. Kh2 {[%emt 0:00:00]} g5 {[%emt 0:00:00]} 46. Rc5 {[%emt 0:03:23]} f4 {[%emt 0:00:00]} 47. Rxg5 {[%emt 0:00:19]} Rxb2 {[%emt 0:00:00]} 48. Ra5 {[%emt 0:03:04]} Ra2 {[%emt 0:00:00]} 49. Rf5 {[%emt 0:01:25]} Kxc7 {[%emt 0:00:00]} 1/2-1/2

[Event "CZE-ch Open 2018"]
[Site "Ostrava"]
[Date "2018.05.05"]
[Round "8"]
[White "Rubes, Jan"]
[Black "Toman, Jaroslav"]
[Result "1/2-1/2"]
[ECO "E17"]
[WhiteElo "2337"]
[BlackElo "2233"]
[Annotator "ChessBase"]
[PlyCount "131"]
[EventDate "2018.??.??"]
[EventCountry "CZE"]
[SourceTitle "playchess.com"]
[Source "ChessBase"]
[SourceQuality "1"]
[TimeControl "40/5400+30:900+30"]

1. d4 {[%emt 0:00:00]} e6 {[%emt 0:00:24]} 2. c4 {[%emt 0:00:00]} Nf6 {[%emt 0:00:37]} 3. Nf3 {[%emt 0:00:50]} b6 {[%emt 0:00:13]} 4. g3 {[%emt 0:00:25]} Bb7 {[%emt 0:00:04]} 5. Bg2 {[%emt 0:00:05]} Be7 {[%emt 0:02:46]} 6. O-O {[%emt 0:00:21]} O-O {[%emt 0:00:04]} 7. d5 {[%emt 0:00:11]} Ne4 {[%emt 0:16:59]} 8. Nfd2 {[%emt 0:14:02]} Nxd2 {[%emt 0:02:29]} 9. Bxd2 {[%emt 0:00:08]} Qc8 {[%emt 0:06:26]} 10. Nc3 {[%emt 0:05:23]} d6 {[%emt 0:08:03]} 11. e4 {[%emt 0:09:09]} Bf6 {[%emt 0:03:27]} 12. Rc1 {[%emt 0:03:57]} a5 {[%emt 0:05:10]} 13. b3 {[%emt 0:02:18]} Nd7 {[%emt 0:06:06]} 14. f4 {[%emt 0:06:54]} Qd8 {[%emt 0:05:29]} 15. Qg4 {[%emt 0:07:37]} Bd4+ {[%emt 0:04:39]} 16. Kh1 {[%emt 0:00:40]} f5 {[%emt 0:00:07]} 17. Qh3 {[%emt 0:01:09]} Nc5 {[%emt 0:04:07]} 18. exf5 {[%emt 0:06:18]} Bxc3 {[%emt 0:05:14]} 19. Bxc3 {[%emt 0:00:16]} exf5 {[%emt 0:00:02]} 20. Rce1 {[%emt 0:01:26]} Qd7 {[%emt 0:00:31]} 21. Qh5 {[%emt 0:08:39]} Rae8 {[%emt 0:00:36]} 22. Kg1 {[%emt 0:05:24]} Bc8 {[%emt 0:00:14]} 23. Qd1 {[%emt 0:03:15]} Qf7 {[%emt 0:03:44]} 24. Qd4 {[%emt 0:00:22]} Qg6 {[%emt 0:00:44]} 25. Bf3 {[%emt 0:00:26]} Rf6 {[%emt 0:15:33]} 26. Qd1 {[%emt 0:02:32]} Rff8 {[%emt 0:03:47]} 27. Bh5 {[%emt 0:00:17]} Rxe1 {[%emt 0:00:04]} 28. Rxe1 {[%emt 0:00:04]} Qh6 {[%emt 0:00:23]} 29. Re7 {[%emt 0:00:08]} Ne4 {[%emt 0:00:32]} 30. Bxg7 {[%emt 0:00:53]} Qxg7 {[%emt 0:00:02]} 31. Rxg7+ {[%emt 0:00:06]} Kxg7 {[%emt 0:00:03]} 32. Qd4+ {[%emt 0:00:46]} Nf6 {[%emt 0:00:43]} 33. Kf2 {[%emt 0:01:22]} Bd7 {[%emt 0:00:20]} 34. h3 {[%emt 0:00:25]} Kh6 {[%emt 0:00:10]} 35. Bf3 {[%emt 0:00:10]} Kg6 {[%emt 0:00:12]} 36. a3 {[%emt 0:02:56]} h5 {[%emt 0:00:28]} 37. Qb2 {[%emt 0:02:08]} Re8 {[%emt 0:01:35]} 38. Qc2 {[%emt 0:03:13]} Kg7 {[%emt 0:00:38]} 39. b4 {[%emt 0:03:52]} axb4 {[%emt 0:00:01]} 40. axb4 {[%emt 0:00:05]} Kf7 {[%emt 0:21:49]} 41. Qa2 {[%emt 0:17:34]} Rc8 {[%emt 0:00:42]} 42. Qa7 {[%emt 0:00:41]} Ke7 {[%emt 0:00:00]} 43. Kg2 {[%emt 0:00:00]} Kf7 {[%emt 0:00:00]} 44. Bd1 {[%emt 0:00:00]} Kf8 {[%emt 0:00:00]} 45. Ba4 {[%emt 0:00:00]} Bxa4 {[%emt 0:00:00]} 46. Qxa4 {[%emt 0:00:00]} Re8 {[%emt 0:00:00]} 47. Qc6 {[%emt 0:00:00]} Re7 {[%emt 0:00:00]} 48. Qa8+ {[%emt 0:00:00]} Kg7 {[%emt 0:00:00]} 49. Qc8 {[%emt 0:00:00]} Kg6 {[%emt 0:00:00]} 50. Kf3 {[%emt 0:00:00]} Rd7 {[%emt 0:00:00]} 51. Ke2 {[%emt 0:00:00]} Re7+ {[%emt 0:00:00]} 52. Kd3 {[%emt 0:00:00]} Rd7 {[%emt 0:00:00]} 53. Kc2 {[%emt 0:00:00]} Re7 {[%emt 0:00:00]} 54. Kb3 {[%emt 0:00:00]} Re3+ {[%emt 0:00:00]} 55. Ka4 {[%emt 0:00:00]} Re7 {[%emt 0:00:00]} 56. Kb5 {[%emt 0:00:00]} Rd7 {[%emt 0:00:00]} 57. Kc6 {[%emt 0:00:52]} Re7 {[%emt 0:00:00]} 58. Qd8 {[%emt 0:07:47]} Kf7 {[%emt 0:00:00]} 59. h4 {[%emt 0:00:38]} Ne8 {[%emt 0:00:00]} 60. Qc8 {[%emt 0:01:49]} Kf6 {[%emt 0:00:00]} 61. Qa8 {[%emt 0:00:30]} Kf7 {[%emt 0:00:00]} 62. Qa1 {[%emt 0:02:39]} Nf6 {[%emt 0:00:00]} 63. Qb1 {[%emt 0:00:43]} Ne4 {[%emt 0:00:00]} 64. Qd3 {[%emt 0:01:02]} Kg6 {[%emt 0:00:00]} 65. Qe3 {[%emt 0:01:13]} Kf7 {[%emt 0:00:00]} 66. Qd3 1/2-1/2